bitfinex/quotes_SOLUSD_20220302
["timestamp","ask_amount","ask_price","bid_price","bid_amount"]
[1646263099784,81.67945615,101.62,101.55,5.172]
[1646263100388,66.68915615,101.62,101.55,30.83928258]
[1646263101189,65.083154,101.62,101.55,30.83928258]
[1646263102791,65.083154,101.62,101.55,45.06928258]
[1646263103190,16.72680215,101.65,101.56,0.71146752]
[1646263103391,20.6466,101.69,101.56,0.71146752]
[1646263103589,1.85600215,101.68,101.56,14.23]
[1646263103791,1.85600215,101.68,101.56,14.48]
[1646263103993,1.85600215,101.68,101.56,21.6755335]
[1646263104193,60.22833319,101.67,101.56,21.6755335]
[1646263104392,60.22833319,101.67,101.57,51.80977208]
[1646263104692,60.22833319,101.67,101.58,98.68]
[1646263104991,60.22833319,101.67,101.59,14.23]
[1646263105212,60.22833319,101.67,101.59,16.92042174]
[1646263105611,60.22833319,101.67,101.6,24.59612815]
[1646263105812,60.47833319,101.67,101.6,24.84612815]
[1646263106015,60.22833319,101.67,101.6,24.84612815]
[1646263107014,1.85600215,101.7,101.6,24.84612815]
[1646263107015,1.85600215,101.7,101.6,145.32952815]
[1646263107213,60.43514199,101.71,101.6,159.55952815]
[1646263107417,55.68514199,101.71,101.6,159.55952815]
[1646263107916,55.22839803,101.7,101.61,0.64010728]
[1646263108116,55.22839803,101.7,101.62,14.23]
[1646263108317,55.22839803,101.7,101.62,14.48]
[1646263108514,55.22839803,101.7,101.62,62.82823349]
[1646263109214,55.22839803,101.7,101.63,0.49955321]
[1646263109414,55.22839803,101.7,101.62,62.82823349]
[1646263111017,55.47839803,101.7,101.62,62.82823349]
[1646263112318,55.47839803,101.7,101.63,0.70798382]
[1646263112517,55.47839803,101.7,101.62,62.82823349]
[1646263113118,70.24269803,101.7,101.62,62.82823349]
[1646263116621,70.24269803,101.7,101.62,62.57823349]
[1646263116824,72.09870018,101.7,101.62,48.34823349]
[1646263117120,83.9183949,101.7,101.62,48.34823349]
[1646263117519,78.10354751,101.7,101.59,25.01659312]
[1646263117720,98.09364217,101.7,101.59,25.01659312]
[1646263117924,117.32364217,101.7,101.59,25.01659312]
[1646263118120,49.2328,101.69,101.59,25.01659312]
[1646263118421,55.88595659,101.68,101.59,25.01659312]
[1646263118621,57.99195874,101.68,101.59,25.01659312]
[1646263118922,55.87457032,101.66,101.59,25.01659312]
[1646263119121,70.89447032,101.66,101.59,25.01659312]
[1646263121825,1.85600215,101.69,101.6,158.0]
[1646263122028,1.85600215,101.69,101.61,112.91]
[1646263122224,14.7633,101.71,101.61,115.65198149]
[1646263122427,14.7633,101.71,101.61,120.65198149]
[1646263122626,468.3391,101.73,101.61,120.65198149]
[1646263122826,58.02500592,101.72,101.62,48.88886352]
[1646263123129,73.03670592,101.72,101.63,14.23]
[1646263123330,73.03670592,101.72,101.63,22.84150765]
[1646263123627,73.03670592,101.72,101.63,22.59150765]
[1646263123827,74.89270807,101.72,101.63,16.20150765]
[1646263125632,74.89270807,101.72,101.62,25.59213586]
[1646263125831,74.89270807,101.72,101.62,25.84213586]
[1646263126629,74.89270807,101.72,101.63,25.20428551]
[1646263132133,173.57270807,101.72,101.62,23.6194]
[1646263132333,14.23,101.71,101.59,25.4046613]
[1646263132532,66.3830852,101.67,101.59,25.4046613]
[1646263132733,66.6330852,101.67,101.59,25.4046613]
[1646263132934,1.85826929,101.66,101.59,25.4046613]
[1646263133133,64.62356939,101.65,101.59,25.4046613]
[1646263133337,64.87356939,101.65,101.59,25.4046613]
[1646263133534,64.87356939,101.65,101.59,25.6546613]
[1646263134739,14.7696,101.67,101.59,25.6546613]
[1646263134938,1.85826929,101.68,101.59,25.6546613]
[1646263135137,85.61986929,101.71,101.6,0.57964937]
[1646263135338,14.7665,101.69,101.6,0.57964937]
[1646263135539,14.7665,101.69,101.59,39.8846613]
[1646263135739,61.60431749,101.68,101.59,39.8846613]
[1646263136140,61.85431749,101.68,101.6,26.82082886]
[1646263136338,61.85431749,101.68,101.6,27.07082886]
[1646263137040,76.62151749,101.68,101.6,27.07082886]
[1646263137440,76.62151749,101.68,101.6,24.60437267]
[1646263138040,76.62151749,101.68,101.6,24.35437267]
[1646263138242,76.62151749,101.68,101.61,0.50155771]
[1646263138444,76.62151749,101.68,101.61,7.42755771]
[1646263138940,76.62151749,101.68,101.61,6.926]
[1646263139741,76.62151749,101.68,101.6,24.35437267]
[1646263140346,51.97006565,101.66,101.6,24.35437267]
[1646263140543,52.22006565,101.66,101.6,24.35437267]
[1646263140744,1.85826929,101.65,101.6,1.93632886]
[1646263140946,59.25996803,101.64,101.58,115.13656094]
[1646263141142,59.50996803,101.64,101.58,115.13656094]
[1646263141943,14.7741,101.63,101.58,115.13656094]
[1646263142143,56.00398188,101.62,101.58,115.13656094]
[1646263142343,56.25398188,101.62,101.58,115.13656094]
[1646263144048,71.02948188,101.62,101.58,115.13656094]
[1646263144249,48.69263521,101.6,101.58,112.9]
[1646263144449,48.94263521,101.6,101.58,112.9]
[1646263144649,50.8009045,101.6,101.58,112.9]
[1646263145048,50.8009045,101.6,101.54,2.05377579]
[1646263145250,14.7812,101.58,101.53,24.62599901]
[1646263145449,15.0312,101.58,101.52,166.53095714]
[1646263145851,63.1993025,101.57,101.52,166.53095714]
[1646263146052,63.4493025,101.57,101.52,166.53095714]
[1646263146251,63.4493025,101.57,101.52,161.60995714]
[1646263146656,78.2323025,101.57,101.52,161.60995714]
[1646263146856,65.30757179,101.57,101.52,161.60995714]
[1646263147457,65.30757179,101.57,101.52,48.70995714]
[1646263148063,14.7845,101.56,101.52,48.70995714]
[1646263148263,15.0345,101.56,101.52,48.70995714]
[1646263149066,59.31167943,101.55,101.52,48.70995714]
[1646263149273,59.56167943,101.55,101.52,48.70995714]
[1646263149467,59.56167943,101.55,101.52,2.10335714]
[1646263149868,59.56167943,101.55,101.49,61.68451579]
[1646263150668,74.34737943,101.55,101.49,61.68451579]
[1646263151672,74.34737943,101.55,101.5,0.61822975]
[1646263152673,74.34737943,101.55,101.49,61.68451579]
[1646263153475,74.34737943,101.55,101.5,0.51481331]
[1646263154582,74.34737943,101.55,101.49,61.68451579]
[1646263154782,0.25,101.55,101.49,61.68451579]
[1646263154983,14.7837,101.57,101.5,0.9032523]
[1646263155185,45.0,101.59,101.51,5.0]
[1646263155386,45.0,101.59,101.52,0.9032523]
[1646263155586,45.0,101.59,101.51,143.64247915]
[1646263155786,97.80155093,101.59,101.53,49.65314283]
[1646263155987,97.80155093,101.59,101.53,56.85314283]
[1646263156187,45.0,101.59,101.53,56.85314283]
[1646263157189,45.0,101.59,101.53,49.65314283]
[1646263157489,56.04545625,101.58,101.53,49.65314283]
[1646263157688,56.29545625,101.58,101.53,49.65314283]
[1646263158090,56.04545625,101.58,101.53,49.65314283]
[1646263158391,56.04545625,101.58,101.54,0.79232526]
[1646263158791,56.04545625,101.58,101.53,49.65314283]
[1646263158991,14.7776,101.61,101.54,0.98270243]
[1646263159390,15.0276,101.61,101.53,60.41814283]
[1646263159589,15.0276,101.61,101.54,0.50095032]
[1646263159992,57.05424679,101.6,101.54,0.50095032]
[1646263160290,57.30424679,101.6,101.53,54.82514283]
[1646263160491,72.08234679,101.6,101.53,77.91944283]
[1646263160694,57.30424679,101.6,101.53,72.99744283]
[1646263160996,57.30424679,101.6,101.53,25.68278371]
[1646263161996,57.30424679,101.6,101.53,2.33848371]
[1646263162194,57.30424679,101.6,101.52,27.18333455]
[1646263163094,47.59107779,101.56,101.52,27.18333455]
[1646263163297,47.84107779,101.56,101.52,27.18333455]
[1646263164400,14.7806,101.59,101.52,27.18333455]
[1646263164599,0.25,101.59,101.53,31.52521335]
[1646263165206,0.25,101.59,101.53,26.60221335]
[1646263165500,74.5154993,101.58,101.53,26.60221335]
[1646263165701,74.7654993,101.58,101.53,26.60221335]
[1646263166101,59.9843993,101.58,101.53,26.60221335]
[1646263166302,59.9843993,101.58,101.54,64.52276279]
[1646263166502,59.9843993,101.58,101.53,26.29450628]
[1646263167403,59.9843993,101.58,101.54,63.20822406]
[1646263167604,59.9843993,101.58,101.55,0.62537802]
[1646263168003,59.9843993,101.58,101.53,31.30555354]
[1646263169003,59.9843993,101.58,101.53,82.82585259]
[1646263169207,59.9843993,101.58,101.54,0.98270243]
[1646263169811,59.9843993,101.58,101.53,31.30555354]
[1646263172012,74.7656993,101.58,101.53,31.30555354]
[1646263172839,59.9843993,101.58,101.53,31.30555354]
[1646263174039,14.7828,101.57,101.53,31.30555354]
[1646263174240,48.3026176,101.56,101.53,31.30555354]
[1646263174443,48.5526176,101.56,101.53,4.923]
[1646263175540,48.3026176,101.56,101.53,4.923]
[1646263176542,48.3026176,101.56,101.54,0.53771093]
[1646263176743,48.3026176,101.56,101.53,4.923]
[1646263176945,48.5526176,101.56,101.53,4.923]
[1646263177944,48.5526176,101.56,101.54,0.67679302]
[1646263178343,48.5526176,101.56,101.53,4.923]
[1646263178544,14.7808,101.59,101.53,4.923]
[1646263178744,15.0308,101.59,101.54,0.51864095]
[1646263178945,15.0308,101.59,101.53,4.923]
[1646263179344,15.0308,101.59,101.53,31.30470326]
[1646263179548,69.84047785,101.59,101.54,51.47269535]
[1646263179745,54.80967785,101.59,101.54,53.61397853]
[1646263180146,49.2605,101.63,101.54,53.61397853]
[1646263180347,49.2605,101.63,101.55,0.502289]
[1646263180654,49.2605,101.63,101.54,53.61397853]
[1646263180846,14.7765,101.62,101.55,26.0558227]
[1646263181147,49.30211271,101.61,101.55,26.0558227]
[1646263181549,49.55211271,101.61,101.55,26.0558227]
[1646263183248,49.55211271,101.61,101.53,60.38959527]
[1646263184046,14.7801,101.59,101.53,60.38959527]
[1646263184247,51.10630714,101.58,101.53,60.38959527]
[1646263184450,51.35630714,101.58,101.52,27.14340721]
[1646263184651,51.35630714,101.58,101.52,51.75810721]
[1646263186148,50.35973376,101.56,101.52,51.75810721]
[1646263186349,50.60973376,101.56,101.52,51.75810721]
[1646263189655,50.60973376,101.56,101.52,110.31258659]
[1646263189851,0.25,101.56,101.52,110.31258659]
[1646263190052,15.0331,101.57,101.53,0.78516423]
[1646263190452,15.0331,101.57,101.52,110.31258659]
[1646263191855,0.25,101.57,101.52,110.31258659]
[1646263192058,64.05913741,101.58,101.52,110.31258659]
[1646263192260,64.05913741,101.58,101.52,2.39470721]
[1646263192656,64.05913741,101.58,101.51,114.84312565]
[1646263192657,1.8534272,101.57,101.51,114.84312565]
[1646263192857,14.7879,101.54,101.51,114.84312565]
[1646263193059,20.8639,101.54,101.51,114.84312565]
[1646263193260,55.53093674,101.53,101.51,114.84312565]
[1646263193457,55.78093674,101.53,101.51,114.84312565]
[1646263194157,70.56943674,101.53,101.51,114.84312565]
[1646263194356,70.56943674,101.53,101.51,112.9]
[1646263195060,70.56943674,101.53,101.51,108.27]
[1646263195260,70.56943674,101.53,101.48,78.56614103]
[1646263196458,70.56943674,101.53,101.49,0.49433587]
[1646263196658,70.56943674,101.53,101.48,78.56614103]
[1646263197062,70.56943674,101.53,101.48,26.20457489]
[1646263197666,14.7898,101.52,101.48,26.20457489]
[1646263197867,15.0398,101.52,101.48,26.20457489]
[1646263198069,47.53152095,101.51,101.48,26.20457489]
[1646263198266,47.78152095,101.51,101.48,26.20457489]
[1646263199286,14.7876,101.54,101.49,1.28905833]
[1646263199487,15.0376,101.54,101.5,0.50215028]
[1646263199687,15.0376,101.54,101.48,26.20457489]
[1646263199887,0.25,101.54,101.48,26.20457489]
[1646263200091,0.25,101.54,101.49,0.5178323]
[1646263200292,0.25,101.54,101.48,26.20457489]
[1646263200492,64.5451,101.55,101.48,26.20457489]
[1646263200889,66.3985272,101.55,101.48,26.20457489]
[1646263201090,14.79,101.52,101.48,26.20457489]
[1646263201291,66.72989967,101.51,101.48,26.20457489]
[1646263201495,66.97989967,101.51,101.48,26.20457489]
[1646263203196,81.77119967,101.51,101.48,26.20457489]
[1646263203393,66.97989967,101.51,101.47,115.2685588]
[1646263204294,14.7927,101.5,101.47,115.2685588]
[1646263204494,15.0427,101.5,101.47,115.2685588]
[1646263204993,59.96307643,101.49,101.47,115.2685588]
[1646263205193,60.21307643,101.49,101.47,115.2685588]
[1646263205994,75.00737643,101.49,101.47,115.2685588]
[1646263206195,46.8534272,101.48,101.4,4.927]
[1646263206397,46.8534272,101.48,101.4,9.927]
[1646263206597,4.929,101.47,101.4,4.929]
[1646263206798,21.2624272,101.47,101.4,4.929]
[1646263207199,41.42277761,101.46,101.4,4.929]
[1646263207398,55.90277761,101.46,101.4,4.929]
[1646263207597,57.75620481,101.46,101.39,112.9]
[1646263208000,57.75620481,101.46,101.39,112.4]
[1646263208397,4.929,101.45,101.39,112.4]
[1646263208598,59.13287406,101.44,101.38,58.64190757]
[1646263208798,59.38287406,101.44,101.38,63.57190757]
[1646263208999,14.8029,101.42,101.38,63.57190757]
[1646263209199,15.0529,101.42,101.38,58.64190757]
[1646263209898,57.30587998,101.42,101.38,58.64190757]
[1646263210099,14.8046,101.41,101.38,58.64190757]
[1646263210298,15.0546,101.41,101.37,112.9]
[1646263211301,15.0546,101.41,101.37,160.41608308]
[1646263211598,15.0546,101.41,101.38,0.60741148]
[1646263211999,15.0546,101.41,101.37,160.41608308]
[1646263212199,15.0546,101.41,101.38,0.5226131]
[1646263212398,15.0546,101.41,101.37,160.41608308]
[1646263213700,15.0546,101.41,101.38,0.98270243]
[1646263214099,0.25,101.41,101.38,0.98270243]
[1646263214399,15.0525,101.43,101.37,160.41608308]
[1646263215801,66.73975188,101.43,101.37,160.41608308]
[1646263215999,14.8029,101.42,101.37,160.41608308]
[1646263216199,15.0529,101.42,101.37,160.41608308]
[1646263216401,15.0529,101.42,101.38,0.53280093]
[1646263217101,15.0529,101.42,101.37,160.41608308]
[1646263219501,14.8046,101.41,101.37,160.41608308]
[1646263219702,15.0546,101.41,101.37,160.41608308]
[1646263219902,22.2616,101.41,101.37,160.41608308]
[1646263220906,22.2616,101.41,101.38,0.73161095]
[1646263221102,15.0546,101.41,101.38,0.73161095]
[1646263221306,15.0546,101.41,101.37,160.41608308]
[1646263223303,15.0546,101.41,101.38,0.64418061]
[1646263223507,15.0546,101.41,101.37,160.41608308]
[1646263223704,15.0546,101.41,101.38,0.55425617]
[1646263223905,15.0546,101.41,101.37,160.41608308]
[1646263224906,0.25,101.41,101.37,160.41608308]
[1646263225107,14.8026,101.43,101.37,160.41608308]
[1646263225708,56.75362529,101.43,101.37,160.41608308]
[1646263226307,57.00362529,101.43,101.37,160.41608308]
[1646263227107,14.8031,101.42,101.37,160.41608308]
[1646263227308,15.0531,101.42,101.37,160.41608308]
[1646263228908,15.0531,101.42,101.38,0.70560707]
[1646263229310,0.25,101.42,101.37,160.41608308]
[1646263229510,15.0511,101.44,101.37,160.41608308]
[1646263229707,15.0511,101.44,101.38,0.6370697]
[1646263229908,14.8011,101.44,101.37,160.41608308]
[1646263230110,14.8011,101.44,101.38,0.8431058]
[1646263230312,4.93,101.47,101.38,0.8431058]
[1646263230710,4.93,101.47,101.38,3.48]
[1646263230909,4.93,101.47,101.38,3.73]
[1646263231113,60.32878918,101.46,101.39,51.34986423]
[1646263231314,60.57878918,101.46,101.39,51.59986423]
[1646263231511,60.57878918,101.46,101.39,51.34986423]
[1646263231713,60.57878918,101.46,101.39,51.59986423]
[1646263232211,55.85716486,101.44,101.39,51.34986423]
[1646263232632,56.10716486,101.44,101.39,51.34986423]
[1646263232812,41.30706486,101.44,101.38,23.0183]
[1646263233710,41.30706486,101.44,101.38,70.07483057]
[1646263233913,41.30706486,101.44,101.39,0.65288159]
[1646263234109,14.8015,101.43,101.39,0.65288159]
[1646263234311,15.0515,101.43,101.38,70.07483057]
[1646263235911,75.13188918,101.42,101.38,23.0183]
[1646263236113,75.38188918,101.42,101.38,23.0183]
[1646263238115,80.31188918,101.42,101.38,23.0183]
[1646263238316,14.8047,101.41,101.39,0.50101]
[1646263238514,15.0547,101.41,101.38,23.0183]
[1646263240337,15.0547,101.41,101.38,83.50222457]
[1646263240539,15.0547,101.41,101.39,0.59042802]
[1646263241338,15.0547,101.41,101.38,83.50222457]
[1646263241939,15.0547,101.41,101.38,60.48392457]
[1646263245146,15.0547,101.41,101.39,0.8842776]
[1646263245543,15.0547,101.41,101.38,60.48392457]
[1646263247645,15.0547,101.41,101.37,112.9]
[1646263248646,15.0547,101.41,101.37,162.51903909]
[1646263248848,15.0547,101.41,101.38,0.63064712]
[1646263249148,15.0547,101.41,101.37,162.51903909]
[1646263250151,0.25,101.41,101.38,0.66199517]
[1646263250349,14.8025,101.43,101.37,162.51903909]
[1646263250350,15.0525,101.43,101.37,162.51903909]
[1646263250552,14.8025,101.43,101.37,162.51903909]
[1646263250751,4.93,101.46,101.37,270.06607912]
[1646263250951,4.93,101.46,101.38,0.98270243]
[1646263251150,51.59188215,101.46,101.39,62.23145438]
[1646263251350,4.929,101.45,101.39,62.23145438]
[1646263251954,5.179,101.45,101.39,62.23145438]
[1646263252351,52.80872329,101.44,101.39,62.23145438]
[1646263252552,53.05872329,101.44,101.39,62.23145438]
[1646263252752,53.05872329,101.44,101.38,24.61]
[1646263252952,4.93,101.43,101.38,24.61]
[1646263253153,5.18,101.43,101.38,24.61]
[1646263253553,14.8032,101.42,101.38,24.61]
[1646263253754,48.57713075,101.41,101.38,24.61]
[1646263253958,48.82713075,101.41,101.38,24.61]
[1646263254157,54.71613075,101.41,101.37,112.9]
[1646263254354,59.64713075,101.41,101.37,112.9]
[1646263255156,74.45173075,101.41,101.35,71.72526719]
[1646263255356,61.50682251,101.41,101.35,71.72526719]
[1646263256557,61.50682251,101.41,101.35,96.17216719]
[1646263257160,14.8076,101.39,101.35,48.9435]
[1646263257358,15.0576,101.39,101.35,48.9435]
[1646263257559,15.0576,101.39,101.35,46.48359643]
[1646263258261,52.80872329,101.38,101.35,46.48359643]
[1646263258460,53.05872329,101.38,101.35,46.48359643]
[1646263259159,53.05872329,101.38,101.33,112.9]
[1646263259361,57.99172329,101.38,101.33,112.9]
[1646263259559,53.05872329,101.38,101.33,112.9]
[1646263259762,61.94072329,101.38,101.33,112.9]
[1646263259959,14.8107,101.37,101.33,112.9]
[1646263260160,15.0607,101.37,101.33,112.9]
[1646263261463,14.8119,101.36,101.33,112.9]
[1646263261663,63.63903075,101.36,101.33,112.9]
[1646263261863,15.0619,101.36,101.33,112.9]
[1646263262864,15.0619,101.36,101.33,166.44423978]
[1646263263363,15.0619,101.36,101.33,112.9]
[1646263264469,15.0619,101.36,101.34,0.82813671]
[1646263265467,14.8119,101.36,101.34,0.82813671]
[1646263265667,14.8102,101.38,101.34,58.8802298]
[1646263266892,0.25,101.38,101.34,58.8802298]
[1646263267091,15.057,101.4,101.34,81.9116298]
[1646263267290,0.25,101.4,101.34,81.6616298]
[1646263267494,518.57150956,101.41,101.34,81.6616298]
[1646263267890,518.57150956,101.41,101.35,0.51817214]
[1646263268290,518.57150956,101.41,101.34,81.6616298]
[1646263268494,467.98,101.41,101.35,0.90209574]
[1646263269091,14.8092,101.38,101.34,81.6616298]
[1646263269291,15.0592,101.38,101.34,81.6616298]
[1646263270094,15.0592,101.38,101.35,0.55678813]
[1646263270990,15.0592,101.38,101.34,81.6616298]
[1646263273297,15.0592,101.38,101.35,0.57116461]
[1646263273895,15.0592,101.38,101.34,81.6616298]
[1646263274696,15.0592,101.38,101.35,0.63776993]
[1646263274897,15.0592,101.38,101.36,0.05209561]
[1646263275597,453.5,101.38,101.36,0.05209561]
[1646263275798,453.5,101.41,101.36,0.05209561]
[1646263276799,505.51877122,101.41,101.36,0.05209561]
[1646263277601,453.5,101.39,101.36,0.05209561]
[1646263277803,49.61708282,101.39,101.36,0.05209561]
[1646263278404,49.61708282,101.39,101.34,81.6616298]
[1646263278901,503.11708282,101.39,101.34,81.6616298]
[1646263279100,468.5578,101.39,101.34,81.9116298]
[1646263280101,516.02889771,101.39,101.34,81.9116298]
[1646263281002,516.02889771,101.39,101.34,81.6616298]
[1646263281603,468.5578,101.39,101.34,81.9116298]
[1646263281806,453.75,101.39,101.35,0.91558201]
[1646263282304,453.75,101.39,101.34,81.9116298]
[1646263282504,453.5,101.38,101.34,22.7814]
[1646263282804,468.5589,101.38,101.34,22.7814]
[1646263283605,66.17276766,101.37,101.34,22.7814]
[1646263283805,66.42276766,101.37,101.34,22.7814]
[1646263286607,0.25,101.37,101.34,22.7814]
[1646263286809,468.5589,101.38,101.36,0.98270243]
[1646263287109,468.5589,101.38,101.35,0.98270243]
[1646263287509,524.94382127,101.38,101.35,0.98270243]
[1646263287710,524.94382127,101.38,101.34,22.7814]
[1646263288412,524.94382127,101.38,101.34,81.67715419]
[1646263289712,524.94382127,101.38,101.35,0.49369089]
[1646263289910,524.94382127,101.38,101.34,22.7814]
[1646263291016,524.94382127,101.38,101.35,0.52069685]
[1646263291416,468.5589,101.38,101.34,22.7814]
[1646263291712,453.75,101.38,101.35,0.98270243]
[1646263292113,453.75,101.38,101.34,22.7814]
[1646263292713,453.75,101.38,101.34,23.0314]
[1646263293813,489.5266554,101.38,101.34,23.0314]
[1646263294614,453.75,101.38,101.34,23.0314]
[1646263294814,453.75,101.38,101.35,0.72052915]
[1646263295614,453.75,101.38,101.35,65.39868008]
[1646263295814,453.75,101.38,101.35,64.67815093]
[1646263296416,453.75,101.38,101.36,0.05373554]
[1646263298318,453.75,101.38,101.34,23.0314]
[1646263298520,453.5,101.37,101.34,23.0314]
[1646263298717,453.5,101.37,101.35,48.16165389]
[1646263299318,453.5,101.37,101.34,23.0314]
[1646263300418,453.5,101.37,101.34,85.47346546]
[1646263300618,453.5,101.37,101.35,0.86572141]
[1646263301219,453.5,101.37,101.35,0.05218276]
[1646263304726,453.5,101.37,101.35,55.07805652]
[1646263306132,453.5,101.37,101.35,0.05218276]
[1646263306529,453.5,101.37,101.34,23.0314]
[1646263307230,453.5,101.37,101.34,88.82323535]
[1646263307431,453.5,101.37,101.35,0.86749362]
[1646263308254,453.5,101.37,101.34,88.82323535]
[1646263309253,453.5,101.37,101.34,23.0314]
[1646263311153,503.75020587,101.37,101.34,23.0314]
[1646263312557,453.5,101.35,101.34,22.7814]
[1646263312756,453.5,101.35,101.33,112.9]
[1646263314455,453.5,101.35,101.33,113.15]
[1646263317657,504.63564817,101.35,101.33,113.15]
[1646263317858,453.5,101.35,101.33,113.15]
[1646263321364,504.16286714,101.35,101.33,113.15]
[1646263321963,453.5,101.35,101.33,113.15]
[1646263325669,453.5,101.34,101.33,112.9]
[1646263333177,453.5,101.34,101.33,172.84355353]
[1646263333984,453.5,101.34,101.33,174.51991913]
[1646263337783,473.2431,101.38,101.33,174.51991913]
[1646263337983,473.4931,101.38,101.33,174.51991913]
[1646263338483,473.4931,101.38,101.33,172.84355353]
[1646263338683,458.684,101.38,101.34,0.50960509]
[1646263338883,458.684,101.38,101.33,196.51215353]
[1646263338884,453.5,101.38,101.33,196.51215353]
[1646263339084,458.432,101.39,101.33,196.51215353]
[1646263339285,453.5,101.35,101.33,196.51215353]
[1646263341409,453.5,101.35,101.34,0.08381001]
[1646263341615,503.68427744,101.37,101.33,136.3186]
[1646263341817,503.93427744,101.37,101.33,112.9]
[1646263342014,4.933,101.36,101.3,4.934]
[1646263342212,5.183,101.36,101.3,4.934]
[1646263342413,458.683,101.36,101.3,4.934]
[1646263342618,51.2015766,101.35,101.3,4.934]
[1646263342813,504.9515766,101.35,101.3,4.934]
[1646263343013,14.8161,101.33,101.3,4.934]
[1646263343214,461.134,101.33,101.3,4.934]
[1646263343415,461.134,101.33,101.29,112.9]
[1646263344014,453.75,101.33,101.3,61.40426237]
[1646263344214,453.5,101.33,101.29,112.9]
[1646263344516,468.3158,101.34,101.29,113.15]
[1646263344715,468.5658,101.34,101.29,113.15]
[1646263345016,468.5658,101.34,101.29,112.9]
[1646263345219,453.5,101.3,101.29,165.27065683]
[1646263345915,453.5,101.3,101.29,112.9]
[1646263347918,453.5,101.3,101.29,162.80076721]
[1646263348118,453.5,101.3,101.29,163.41257675]
[1646263349122,453.5,101.3,101.29,162.80076721]
[1646263349520,453.5,101.3,101.29,163.41257675]
[1646263351522,453.5,101.3,101.29,162.80076721]
[1646263352122,453.5,101.3,101.29,163.43954122]
[1646263354125,458.436,101.33,101.29,163.43954122]
[1646263354425,458.686,101.33,101.29,163.43954122]
[1646263354625,458.436,101.33,101.29,163.43954122]
[1646263354928,453.5,101.33,101.29,163.68954122]
[1646263355325,473.2469,101.36,101.29,163.68954122]
[1646263356124,473.4969,101.36,101.3,24.2925]
[1646263356324,453.5,101.31,101.3,24.5425]
[1646263356526,453.5,101.31,101.3,0.25]
[1646263357424,453.5,101.31,101.29,163.05076721]
[1646263360529,453.5,101.31,101.29,162.80076721]
[1646263360727,453.5,101.31,101.29,163.05076721]
[1646263363428,22.02462895,101.51,101.38,98.68]
[1646263363630,34.79899617,101.51,101.4,98.68]
[1646263363829,60.8988,101.53,101.41,158.0]
[1646263364031,14.6256,101.56,101.42,158.0]
[1646263364229,14.9799,101.59,101.49,3.48]
[1646263364427,14.9799,101.59,101.49,0.25]
[1646263364428,49.70598097,101.58,101.49,0.25]
[1646263364629,49.70598097,101.58,101.49,6.25]
[1646263364829,14.9799,101.59,101.5,17.71]
[1646263364830,56.97085946,101.56,101.5,17.71]
[1646263365030,4.924,101.55,101.5,17.96]
[1646263365333,56.59660611,101.54,101.5,14.23]
[1646263365630,56.59660611,101.54,101.5,17.96]
[1646263366229,56.84660611,101.54,101.5,17.96]
[1646263366431,56.84660611,101.54,101.5,17.71]
[1646263368130,0.82082464,101.53,101.5,17.71]
[1646263368331,56.62747351,101.52,101.51,0.03169579]
[1646263368531,56.62747351,101.52,101.51,14.26169579]
[1646263371138,56.62747351,101.52,101.51,20.26169579]
[1646263372438,1.86022369,101.58,101.51,20.26169579]
[1646263372738,0.25,101.58,101.51,23.99169579]
[1646263372938,4.923,101.6,101.51,23.99169579]
[1646263373144,5.173,101.6,101.51,23.99169579]
[1646263373340,6.78322369,101.6,101.51,23.99169579]
[1646263373543,0.78285981,101.58,101.51,23.99169579]
[1646263373740,52.79825355,101.57,101.51,17.74169579]
[1646263373943,49.55689615,101.55,101.51,17.71]
[1646263374140,49.55689615,101.55,101.46,4.925]
[1646263374341,61.42954404,101.53,101.47,6.0]
[1646263374742,61.67954404,101.53,101.47,6.0]
[1646263375041,61.42954404,101.53,101.48,3.48]
[1646263375342,61.42954404,101.53,101.47,14.23]
[1646263375541,61.42954404,101.53,101.47,14.48]
[1646263375943,61.42954404,101.53,101.48,3.48]
[1646263376142,61.67954404,101.53,101.48,3.73]
[1646263377546,61.67954404,101.53,101.48,1.2642736]
[1646263378345,61.67954404,101.53,101.48,0.25]
[1646263378543,61.67954404,101.53,101.49,1.0]